bitfinex-derivatives/quotes_SOLF0:USTF0_20240902
["timestamp","ask_amount","ask_price","bid_price","bid_amount"]
[1725294378652,3.7651,132.79,132.77,3.7654]
[1725294382139,0.05416504,132.8,132.75,11.56]
[1725294382334,0.05416504,132.8,132.72,1.3426]
[1725294382543,0.05164738,132.77,132.74,11.56]
[1725294383143,0.05164738,132.77,132.75,3.7661]
[1725294384136,0.05164738,132.77,132.71,72.5577168]
[1725294384441,0.05164738,132.77,132.72,11.56]
[1725294384642,3.7663,132.75,132.73,3.7668]
[1725294384940,0.05164738,132.77,132.73,11.56]
[1725294385137,3.81744738,132.77,132.75,11.56]
[1725294385949,3.81744738,132.77,132.75,15.3262]
[1725294391456,3.766,132.76,132.73,11.56]
[1725294391858,0.05164738,132.77,132.73,11.56]
[1725294392051,0.05164738,132.77,132.75,11.56]
[1725294392245,0.05164738,132.77,132.76,11.56]
[1725294393461,0.05164738,132.77,132.76,15.326]
[1725294394356,2.7156,132.83,132.8,3.7647]
[1725294394548,2.7156,132.83,132.78,11.56]
[1725294394753,3.7645,132.82,132.78,11.56]
[1725294395157,3.7645,132.82,132.79,3.765]
[1725294395559,3.81813324,132.82,132.79,3.81938595]
[1725294395954,3.7646,132.81,132.79,3.81938595]
[1725294399368,3.7646,132.81,132.79,0.05438595]
[1725294399569,3.7648,132.8,132.79,0.05438595]
[1725294403373,3.7658,132.77,132.71,1.38376784]
[1725294403567,3.7658,132.77,132.66,46.24]
[1725294403568,3.7658,132.77,132.73,11.56]
[1725294403977,3.7658,132.77,132.74,3.7663]
[1725294404579,3.82146816,132.77,132.74,3.7663]
[1725294404778,0.05566816,132.77,132.73,11.56]
[1725294405080,0.05566816,132.77,132.66,46.24]
[1725294405377,0.05566816,132.77,132.75,3.7661]
[1725294406373,0.05566816,132.77,132.76,3.766]
[1725294406576,0.05566816,132.77,132.69,70.99947983]
[1725294406783,0.05566816,132.77,132.74,11.56]
[1725294406973,0.05566816,132.77,132.75,3.766]
[1725294408082,3.82136816,132.77,132.75,3.766]
[1725294408579,3.82136816,132.77,132.69,70.99947983]
[1725294408580,0.05566816,132.77,132.69,70.99947983]
[1725294408774,3.91338132,132.77,132.72,11.56]
[1725294408975,0.05566816,132.77,132.72,11.56]
[1725294409171,7.51911295,132.76,132.73,3.7667]
[1725294409768,3.7663,132.75,132.73,3.7667]
[1725294410177,3.75301295,132.76,132.71,3.7672]
[1725294410378,3.7664,132.75,132.71,11.56]
[1725294410584,3.8206604,132.75,132.71,11.56]
[1725294410776,3.8206604,132.75,132.72,3.7669]
[1725294412879,3.8206604,132.75,132.71,11.56]
[1725294413084,0.0542604,132.75,132.73,11.56]
[1725294413588,0.0542604,132.75,132.74,3.7665]
[1725294413786,0.0542604,132.75,132.73,11.56]
[1725294414284,3.8205604,132.75,132.69,70.84467983]
[1725294414484,3.8205604,132.75,132.72,11.56]
[1725294414883,3.8205604,132.75,132.72,3.7669]
[1725294415092,3.7668,132.73,132.69,70.84467983]
[1725294415286,0.05377179,132.72,132.69,3.7678]
[1725294415786,3.82107179,132.72,132.69,3.7678]
[1725294416685,3.7674,132.71,132.69,3.7678]
[1725294416888,3.7674,132.71,132.68,3.7681]
[1725294417191,3.8249509,132.71,132.68,3.7681]
[1725294418288,3.7677,132.7,132.67,15.3284]
[1725294418887,3.7677,132.7,132.67,3.7684]
[1725294419579,3.768,132.69,132.67,3.7684]
[1725294419785,3.768,132.69,132.66,15.3287]
[1725294420387,3.768,132.69,132.67,3.7685]
[1725294420785,3.81681064,132.69,132.67,3.7685]
[1725294422486,0.04881064,132.69,132.66,11.56]
[1725294423092,0.04881064,132.69,132.67,3.7684]
[1725294423489,0.04881064,132.69,132.63,3.75847867]
[1725294423794,0.04881064,132.69,132.66,11.56]
[1725294423994,0.05298525,132.69,132.66,11.56]
[1725294424992,0.05298525,132.69,132.67,3.7683]
[1725294426193,3.82088525,132.69,132.67,3.7683]
[1725294426596,0.05298525,132.69,132.67,3.7683]
[1725294428295,3.82098525,132.69,132.67,3.7683]
[1725294428692,0.05298525,132.69,132.61,2.6583]
[1725294428891,0.05301507,132.66,132.61,2.6583]
[1725294429089,0.05301507,132.66,132.64,11.56]
[1725294429593,0.05301507,132.66,132.62,3.70505766]
[1725294429791,0.05301507,132.66,132.64,11.56]
[1725294430196,0.05301507,132.66,132.64,3.7691]
[1725294430389,0.05301507,132.66,132.64,15.3291]
[1725294431196,0.05301507,132.66,132.61,5.18359326]
[1725294431393,0.05301507,132.66,132.61,1.3357]
[1725294431804,3.82191507,132.66,132.63,3.7695]
[1725294432101,3.82191507,132.66,132.6,3.80832139]
[1725294432102,0.05301507,132.66,132.6,11.56]
[1725294432304,3.7695,132.64,132.61,3.7701]
[1725294432496,3.81219413,132.64,132.61,3.7701]
[1725294432697,0.05301507,132.66,132.6,11.56]
[1725294432904,14.3846,132.67,132.6,11.56]
[1725294432905,0.05759041,132.64,132.6,11.56]
[1725294433102,0.05759041,132.64,132.59,11.56]
[1725294433307,11.61741984,132.63,132.54,2.892]
[1725294433498,0.05580403,132.6,132.57,11.56]
[1725294433798,3.82650403,132.6,132.57,3.7713]
[1725294434405,3.82650403,132.6,132.57,15.3313]
[1725294435301,0.05580403,132.6,132.57,15.3313]
[1725294435701,0.05580403,132.6,132.56,15.3316]
[1725294435902,0.05580403,132.6,132.56,3.7716]
[1725294436098,11.61580403,132.6,132.5,66.85990457]
[1725294436296,0.05228685,132.56,132.52,11.56]
[1725294436505,3.7725,132.53,132.5,11.56]
[1725294436702,3.69193846,132.53,132.46,2.9956]
[1725294436905,0.05288582,132.53,132.48,11.56]
[1725294437105,3.7729,132.52,132.48,11.56]
[1725294437306,3.7729,132.52,132.49,11.56]
[1725294437502,0.05288582,132.53,132.49,11.56]
[1725294437706,3.82548582,132.53,132.49,11.56]
[1725294438002,0.05288582,132.53,132.51,11.56]
[1725294438400,0.05288582,132.53,132.52,15.3328]
[1725294439914,0.05288582,132.53,132.52,32.7528]
[1725294440913,0.05288582,132.53,132.49,28.98]
[1725294441311,0.05288582,132.53,132.5,3.7732]
[1725294442013,0.05288582,132.53,132.51,3.773]
[1725294442207,0.05288582,132.53,132.48,28.98]
[1725294442403,0.05288582,132.53,132.5,28.98]
[1725294443313,0.05288582,132.53,132.52,3.7728]
[1725294445409,0.05288582,132.53,132.51,3.7729]
[1725294446710,0.05288582,132.53,132.5,3.7732]
[1725294447311,3.82538582,132.53,132.5,3.7732]
[1725294447507,0.05288582,132.53,132.47,70.26855535]
[1725294447806,0.05288582,132.53,132.44,3.80602082]
[1725294447807,29.03288582,132.53,132.44,3.80602082]
[1725294448110,0.0549928,132.5,132.44,3.80602082]
[1725294448310,0.0549928,132.5,132.47,3.7739]
[1725294448509,3.8285928,132.5,132.47,3.7739]
[1725294449419,0.0549928,132.5,132.46,3.7743]
[1725294449619,0.0549928,132.5,132.44,3.71735849]
[1725294450315,3.8284928,132.5,132.47,3.774]
[1725294451610,0.0549928,132.5,132.44,3.84528301]
[1725294451810,0.0549928,132.5,132.42,1.3286]
[1725294452011,0.05757135,132.47,132.42,1.3286]
[1725294454919,0.05757135,132.47,132.46,3.7745]
[1725294456007,3.79055379,132.53,132.45,28.98]
[1725294456309,2.8137,132.54,132.47,28.98]
[1725294456912,6.5861,132.54,132.47,28.98]
[1725294457217,0.05717748,132.52,132.49,29.03035531]
[1725294457516,0.05717748,132.52,132.51,3.7731]
[1725294460417,0.05717748,132.52,132.49,0.05035531]
[1725294461416,3.83007748,132.52,132.49,3.82385531]
[1725294462717,0.05717748,132.52,132.49,0.05035531]
[1725294463821,0.05717748,132.52,132.51,3.7731]
[1725294471533,0.05717748,132.52,132.49,0.05035531]
[1725294472425,3.83007748,132.52,132.49,0.05035531]
[1725294473327,0.05717748,132.52,132.49,0.05035531]
[1725294474525,1.50187748,132.52,132.49,0.05035531]
[1725294474729,3.7731,132.51,132.49,0.05035531]
[1725294475323,3.7733,132.5,132.49,0.05035531]
[1725294476534,3.7733,132.5,132.43,28.98]
[1725294476732,3.7733,132.5,132.44,3.83857165]
[1725294476931,3.7733,132.5,132.47,3.774]
[1725294477638,3.7737,132.49,132.46,3.7743]
[1725294477830,0.0524852,132.5,132.43,28.98]
[1725294478033,30.4247,132.52,132.43,28.98]
[1725294478034,0.05378436,132.48,132.44,3.74528581]
[1725294479435,0.05378436,132.48,132.47,3.7742]
[1725294479839,0.05378436,132.48,132.43,28.98]
[1725294480427,0.05378436,132.48,132.47,3.7742]
[1725294481127,0.05378436,132.48,132.45,28.98]
[1725294481536,0.05378436,132.48,132.47,3.7742]
[1725294485744,2.8222,132.54,132.51,3.773]
[1725294485933,6.5946,132.54,132.51,3.773]
[1725294486139,6.5946,132.54,132.47,28.98]
[1725294486444,3.7724,132.54,132.52,3.7727]
[1725294486635,1.4061,132.57,132.48,28.98]
[1725294486834,0.05115882,132.54,132.53,3.7725]
[1725294487841,0.05115882,132.54,132.52,0.05786036]
[1725294488446,3.82345882,132.54,132.52,0.05786036]
[1725294489039,0.05115882,132.54,132.52,3.83056036]
[1725294489240,0.05115882,132.54,132.52,0.05786036]
[1725294489536,3.82345882,132.54,132.52,3.83056036]
[1725294489733,3.82345882,132.54,132.52,0.05786036]
[1725294490746,0.05115882,132.54,132.52,3.83046036]
[1725294491343,3.82355882,132.54,132.52,0.05786036]
[1725294491548,0.05115882,132.54,132.52,0.05786036]
[1725294491739,3.70822342,132.53,132.52,0.05786036]
[1725294491944,29.03115882,132.54,132.52,0.05786036]
[1725294492254,28.98,132.54,132.46,3.82214849]
[1725294492646,3.7732,132.51,132.48,3.7737]
[1725294492950,3.7732,132.51,132.45,32.78215502]
[1725294493143,0.05022402,132.49,132.45,32.78215502]
[1725294493343,0.05022402,132.49,132.48,3.7739]
[1725294502946,0.05022402,132.49,132.45,3.80215502]
[1725294503156,0.05022402,132.49,132.44,28.98]
[1725294503354,0.05022402,132.49,132.45,3.77594113]
[1725294504043,0.05022402,132.49,132.48,3.7739]
[1725294504241,0.05022402,132.49,132.45,3.77594113]
[1725294504451,0.05022402,132.49,132.43,28.98]
[1725294504649,0.05022402,132.49,132.47,3.774]
[1725294508363,0.05022402,132.49,132.48,3.7739]
[1725294512058,0.05022402,132.49,132.47,3.7742]
[1725294512258,0.04883501,132.49,132.44,11.59]
[1725294512458,0.05119432,132.48,132.46,3.7743]
[1725294513555,0.05119432,132.48,132.47,3.7742]
[1725294515569,0.05119432,132.48,132.47,15.3642]
[1725294519476,0.05119432,132.48,132.47,3.7742]
[1725294521669,0.05119432,132.48,132.45,11.59]
[1725294522373,0.05119432,132.48,132.46,3.7742]
[1725294523270,0.05119432,132.48,132.47,3.7742]
[1725294523971,11.64119432,132.48,132.33,10.99199998]
[1725294524174,11.59,132.44,132.36,2.7096]
[1725294524375,11.59,132.44,132.3,3.43569998]
[1725294524376,11.59,132.42,132.37,3.7648133]
[1725294524572,11.59,132.42,132.36,3.7772]
[1725294524573,3.7761,132.41,132.36,3.7772]
[1725294524867,0.05808904,132.4,132.35,15.33519114]
[1725294525063,3.7766,132.39,132.35,19.11249114]
[1725294525262,0.05808904,132.4,132.33,46.36]
[1725294525462,0.05723203,132.38,132.36,11.59]
[1725294525769,0.05723203,132.38,132.36,15.3671]
[1725294525970,0.05723203,132.38,132.36,3.7771]
[1725294527068,0.05723203,132.38,132.35,32.7775]
[1725294527670,0.05723203,132.38,132.36,3.7773]
[1725294529771,0.05723203,132.38,132.37,3.7771]
[1725294530178,0.05723203,132.38,132.37,32.7771]
[1725294530376,0.05723203,132.38,132.31,6.51139353]
[1725294530577,0.05723203,132.38,132.34,29.0]
[1725294530977,0.05723203,132.38,132.37,3.7771]
[1725294531374,0.05723203,132.38,132.36,3.7772]
[1725294532282,0.05723203,132.38,132.37,3.7771]
[1725294532473,3.7761,132.41,132.36,29.0]
[1725294532474,3.7761,132.41,132.38,0.05090695]
[1725294532673,1.3245,132.48,132.39,29.0]
[1725294532873,3.84356152,132.47,132.39,29.0]
[1725294533074,30.4002,132.46,132.37,29.0]
[1725294533280,29.0,132.44,132.35,29.0]
[1725294533481,3.82437557,132.41,132.38,0.05766697]
[1725294534086,3.82437557,132.41,132.38,3.83446697]
[1725294534481,3.82437557,132.41,132.38,0.05766697]
[1725294534786,3.7763,132.4,132.38,0.05766697]
[1725294541283,0.04827557,132.41,132.38,0.05766697]
[1725294541487,3.7765,132.39,132.38,0.05766697]
[1725294545086,3.7773,132.37,132.31,3.80179353]
[1725294545289,1.4307,132.36,132.32,5.16617287]
[1725294545483,1.4307,132.36,132.32,3.7784]
[1725294545689,3.778,132.34,132.3,3.78833543]
[1725294545883,3.778,132.34,132.31,3.7785]
[1725294546287,3.778,132.34,132.3,3.69882935]
[1725294546288,0.05665958,132.34,132.33,11.61]
[1725294546595,271.44,132.47,132.33,11.61]
[1725294546596,16.80941059,132.41,132.35,0.05568343]
[1725294546794,3.7767,132.39,132.34,15.31827092]
[1725294547095,3.77398424,132.4,132.35,3.7774]
[1725294547388,11.61,132.4,132.34,11.61]
[1725294547595,0.05014546,132.38,132.36,11.66294553]
[1725294548095,0.05014546,132.38,132.37,3.7771]
[1725294548391,30.3999,132.46,132.36,29.05294553]
[1725294548592,3.7754,132.43,132.39,3.7765]
[1725294549086,3.7754,132.43,132.36,29.0]
[1725294549283,3.7757,132.42,132.36,29.0]
[1725294549484,0.04882429,132.4,132.38,0.0500159]
[1725294549691,0.04882429,132.4,132.38,3.8266159]
[1725294550889,0.04882429,132.4,132.39,3.7765]
[1725294555292,0.04882429,132.4,132.38,3.8266159]
[1725294556795,7.88634299,132.58,132.43,3.7753]
[1725294556998,31.8776,132.5,132.41,29.0]
[1725294557499,3.7744,132.47,132.41,29.0]
[1725294557905,0.05569286,132.45,132.43,3.8255315]
[1725294558100,0.05569286,132.45,132.43,0.0503315]
[1725294558795,0.05569286,132.45,132.44,3.7751]
[1725294558995,0.05569286,132.45,132.43,0.0503315]
[1725294560195,0.05569286,132.45,132.43,3.8256315]
[1725294560399,3.83049286,132.45,132.43,0.0503315]
[1725294560699,5.18189286,132.45,132.43,0.0503315]
[1725294561101,8.9195297,132.45,132.43,0.0503315]
[1725294561303,5.18189286,132.45,132.43,0.0503315]
[1725294561900,3.7751,132.44,132.43,0.0503315]
[1725294562605,10.25199274,132.45,132.43,0.0503315]
[1725294562802,6.47709274,132.45,132.43,0.0503315]
[1725294563198,29.0,132.42,132.37,3.7769]
[1725294564201,3.82490145,132.41,132.38,3.82491819]
[1725294564498,3.82490145,132.41,132.38,0.04821819]
[1725294564499,0.04890145,132.41,132.38,0.04821819]
[1725294564702,0.04890145,132.41,132.39,3.7763]
[1725294568412,0.04890145,132.41,132.38,0.04821819]
[1725294568413,3.7762,132.4,132.38,0.04821819]
[1725294568908,0.04890145,132.41,132.38,0.04821819]
[1725294569095,3.82490145,132.41,132.38,3.82471819]
[1725294569295,3.82490145,132.41,132.38,0.04821819]
[1725294570002,3.82490145,132.41,132.38,3.82481819]
[1725294571299,0.04890145,132.41,132.38,3.82481819]
[1725294572207,0.04890145,132.41,132.39,3.7765]
[1725294573913,3.82480145,132.41,132.38,3.82481819]
[1725294574810,3.7764,132.4,132.38,0.04821819]
[1725294575013,0.04890145,132.41,132.38,0.04821819]
[1725294575213,3.7762,132.4,132.38,0.04821819]
[1725294576406,0.04890145,132.41,132.38,0.04821819]
[1725294576407,3.7765,132.39,132.38,0.04821819]
[1725294584407,0.04890145,132.41,132.38,11.64821819]
[1725294584609,0.04890145,132.41,132.4,11.6]
[1725294585007,313.88908072,132.59,132.4,58.0]
[1725294585201,11.6,132.54,132.48,11.6]
[1725294585606,11.6,132.54,132.49,3.7736]
[1725294585808,11.6,132.54,132.47,11.6]
[1725294585809,11.6,132.53,132.41,0.1121]
[1725294586014,3.7733,132.51,132.47,3.7742]
[1725294586215,0.04973551,132.48,132.46,0.048841]
[1725294589714,3.7742,132.47,132.44,3.7749]
[1725294590018,5.1656,132.47,132.44,3.7749]
[1725294590814,5.1656,132.47,132.44,3.82464292]
[1725294591015,30.3614,132.47,132.38,28.97]
[1725294591714,30.3614,132.47,132.38,32.70282915]
[1725294592011,0.04955765,132.44,132.41,0.05105264]
[1725294592212,3.82465765,132.44,132.41,3.82685264]
[1725294592413,0.04955765,132.44,132.41,0.05105264]
[1725294592616,0.04955765,132.44,132.42,3.7755]
[1725294595123,0.04955765,132.44,132.41,0.05105264]
[1725294595621,0.04955765,132.44,132.42,3.7756]
[1725294596719,0.04955765,132.44,132.43,3.7753]
[1725294596919,0.04955765,132.44,132.41,0.05105264]
[1725294597425,0.04955765,132.44,132.42,3.7755]
[1725294597819,3.82465765,132.44,132.42,3.7755]
[1725294598021,0.04955765,132.44,132.41,0.05105264]
[1725294598527,3.7754,132.43,132.41,0.05105264]
[1725294599225,3.82485765,132.44,132.41,3.82675264]
[1725294599616,3.82485765,132.44,132.41,0.05105264]
[1725294599822,3.82485765,132.44,132.41,3.82685264]
[1725294600033,3.7754,132.43,132.41,3.82685264]
[1725294600218,0.04955765,132.44,132.41,3.82685264]
[1725294601225,3.80078489,132.44,132.41,0.05105264]
[1725294601429,1.4125,132.43,132.41,0.05105264]
[1725294601726,3.7761,132.41,132.38,3.7766]
[1725294603624,3.7758,132.42,132.39,3.7765]
[1725294603928,3.7758,132.42,132.37,28.97]
[1725294603929,0.05217063,132.41,132.37,28.97]
[1725294604626,0.05217063,132.41,132.39,28.97]
[1725294605026,1.3914,132.47,132.4,28.97]
[1725294605334,1.3914,132.47,132.42,28.97]
[1725294605521,5.1657,132.47,132.42,28.97]
[1725294606129,0.05723493,132.46,132.44,3.7749]
[1725294608037,0.05723493,132.46,132.43,3.82623328]
[1725294609028,3.83173493,132.46,132.43,3.82623328]
[1725294609622,0.05723493,132.46,132.44,3.7749]
[1725294610427,3.83173493,132.46,132.43,3.82623328]
[1725294610638,0.05723493,132.46,132.43,0.05103328]
[1725294610827,3.7748,132.45,132.43,0.05103328]
[1725294611029,0.05723493,132.46,132.43,0.05103328]
[1725294611435,3.7751,132.44,132.43,0.05103328]
[1725294611942,3.775,132.45,132.43,0.05103328]
[1725294613239,3.7751,132.44,132.43,0.05103328]
[1725294616648,15.36416188,132.44,132.38,11.59]
[1725294616940,3.77416188,132.44,132.39,11.59]
[1725294617141,3.77416188,132.44,132.4,3.7759]
[1725294617344,3.77416188,132.44,132.35,154.76402537]
[1725294617646,0.05203392,132.41,132.4,3.7762]
[1725294618749,0.05203392,132.41,132.39,15.3664]
[1725294620340,0.05203392,132.41,132.38,3.7767]
[1725294621848,0.05203392,132.41,132.39,15.3664]
[1725294623455,0.05203392,132.41,132.39,11.59]
[1725294623959,3.82803392,132.41,132.39,11.59]
[1725294626569,3.82803392,132.41,132.39,15.3665]
[1725294626570,0.05203392,132.41,132.39,15.3665]
[1725294627766,3.82803392,132.41,132.39,15.3665]
[1725294629360,11.64203392,132.41,132.34,1.2864]
[1725294629561,11.64203392,132.41,132.35,11.59]
[1725294629858,3.7763,132.4,132.37,3.7768]
[1725294630051,3.7763,132.4,132.36,11.59]
[1725294630458,3.7763,132.4,132.37,3.7769]
[1725294631663,0.05203392,132.41,132.35,3.83391911]
[1725294631864,0.05203392,132.41,132.4,11.59]
[1725294632069,4.1043,132.5,132.45,11.59]
[1725294632266,7.8778,132.5,132.46,3.7744]
[1725294632765,3.7738,132.49,132.45,15.3647]
[1725294632953,11.59,132.49,132.41,6.54667484]
[1725294633153,11.59,132.49,132.43,11.59]
[1725294633356,3.7743,132.47,132.43,3.7753]
[1725294634158,3.7743,132.47,132.46,0.05710338]
[1725294634370,3.83216875,132.48,132.46,0.05710338]
[1725294634568,0.05806875,132.48,132.46,0.05710338]
[1725294634761,3.7742,132.47,132.43,3.7753]
[1725294635153,0.05806875,132.48,132.38,0.1105]
[1725294635363,3.7748,132.45,132.42,3.7756]
[1725294635755,4.1043,132.5,132.42,28.98]
[1725294635958,0.05011858,132.45,132.42,28.98]
[1725294636159,0.05011858,132.45,132.42,32.82229201]
[1725294636464,0.05011858,132.45,132.44,3.7751]
[1725294637259,0.05011858,132.45,132.44,32.7551]
[1725294639570,0.05011858,132.45,132.44,3.7751]
[1725294639962,0.05011858,132.45,132.43,3.7752]
[1725294640966,0.05011858,132.45,132.44,3.7751]
[1725294641267,0.05011858,132.45,132.44,32.7551]
[1725294641473,30.3417,132.55,132.44,28.98]
[1725294641668,33.0874,132.55,132.48,3.7738]
[1725294642277,3.7732,132.51,132.48,3.7738]
[1725294642474,92.57667929,132.59,132.52,3.7726]
[1725294642670,1.41,132.57,132.5,28.98]
[1725294643179,1.41,132.57,132.51,3.7729]
[1725294643373,3.7722,132.55,132.51,3.7729]
[1725294643574,0.05146783,132.55,132.52,0.04774015]
[1725294643770,0.05030083,132.55,132.52,0.05354005]
[1725294643979,3.7725,132.53,132.52,0.05354005]
[1725294645077,28.98,132.54,132.45,28.98]
[1725294645379,1.4258,132.52,132.48,3.7738]
[1725294645580,3.79367594,132.51,132.48,3.7738]
[1725294645776,7.56687594,132.51,132.45,28.98]
[1725294646174,0.05503916,132.49,132.47,3.7741]
[1725294648382,0.05503916,132.49,132.48,3.7739]
[1725294649879,3.7724,132.54,132.47,28.98]
[1725294650073,3.7724,132.54,132.49,28.98]
[1725294650777,30.4447,132.57,132.49,28.98]
[1725294650778,3.7726,132.53,132.49,28.98]
[1725294650981,0.05429268,132.52,132.5,0.0491989]
[1725294651186,0.05429268,132.52,132.5,3.8262864]
[1725294651187,0.05757075,132.52,132.5,3.8262864]
[1725294651784,3.75342754,132.52,132.5,0.0531864]
[1725294652083,2.80187075,132.52,132.5,0.0531864]
[1725294652284,3.7731,132.51,132.5,0.0531864]
[1725294652490,7.58819015,132.51,132.5,0.0531864]
[1725294654285,3.7744,132.47,132.41,3.81397761]
[1725294654587,3.81509015,132.51,132.43,28.98]
[1725294654780,31.7243,132.52,132.43,28.98]
[1725294654981,31.7243,132.52,132.44,3.775]
[1725294655188,35.43655845,132.52,132.43,28.98]
[1725294655488,0.05333119,132.49,132.43,28.98]
[1725294656684,3.7744,132.47,132.43,32.7551]
[1725294656890,0.0549274,132.46,132.43,28.98]
[1725294657885,0.0549274,132.46,132.44,3.775]
[1725294658295,0.0549274,132.46,132.44,28.98]
[1725294658588,0.0549274,132.46,132.45,3.7748]
[1725294659184,0.0549274,132.46,132.44,3.7749]
[1725294659391,0.0549274,132.46,132.43,28.98]
[1725294659785,0.0549274,132.46,132.44,3.775]
[1725294660089,0.0549274,132.46,132.43,28.98]
[1725294660290,0.0549274,132.46,132.43,32.7552]
[1725294660485,0.0549274,132.46,132.43,28.98]
[1725294661095,3.8295274,132.46,132.43,28.98]
[1725294661695,3.8295274,132.46,132.4,28.98]
[1725294661696,0.0549274,132.46,132.4,28.98]
[1725294661991,0.05199043,132.44,132.4,28.98]
[1725294662401,0.05199043,132.44,132.41,3.7757]
[1725294663200,0.05199043,132.44,132.4,28.98]
[1725294663201,0.05199043,132.44,132.43,3.7753]
[1725294663399,0.05199043,132.44,132.42,28.98]
[1725294663806,0.05199043,132.44,132.42,32.7555]
[1725294665892,0.05199043,132.44,132.35,0.1093]
[1725294666197,3.82709043,132.44,132.4,28.98]
[1725294666993,0.05199043,132.44,132.4,28.98]
[1725294667493,0.05199043,132.44,132.42,3.7754]
[1725294672594,0.05199043,132.44,132.41,3.7757]
[1725294672796,0.05199043,132.44,132.4,28.98]
[1725294672797,3.80387807,132.44,132.4,28.98]
[1725294672992,0.05199043,132.44,132.4,28.98]
[1725294673495,3.7758,132.42,132.4,32.7562]
[1725294673805,0.05199043,132.44,132.38,28.98]
[1725294673996,3.7761,132.41,132.38,32.7566]
[1725294674294,3.7761,132.41,132.38,28.98]
[1725294674803,0.04805841,132.42,132.38,28.98]
[1725294675298,0.04805841,132.42,132.4,3.7761]
[1725294676500,3.82375841,132.42,132.39,3.7763]
[1725294677295,3.82375841,132.42,132.38,28.98]
[1725294677802,3.82375841,132.42,132.39,3.7763]
[1725294678207,3.776,132.41,132.38,28.98]
[1725294678403,0.04805841,132.42,132.38,28.98]
[1725294678597,0.04805841,132.42,132.36,28.98]
[1725294678798,3.7765,132.39,132.36,28.98]
[1725294678998,3.7765,132.39,132.36,32.7571]
[1725294679900,3.7765,132.39,132.37,3.777]
[1725294681102,0.055253,132.4,132.29,7.5584]
[1725294681412,0.05560836,132.36,132.34,28.98]
[1725294681610,0.05560836,132.36,132.35,32.7576]
[1725294684308,3.7766,132.39,132.36,3.7773]
[1725294684513,3.84722134,132.41,132.35,28.98]
[1725294684707,30.4156,132.44,132.33,28.98]
[1725294684906,3.7769,132.38,132.35,3.7774]
[1725294685101,3.76822542,132.39,132.33,28.98]
[1725294685303,0.05744491,132.37,132.35,0.05319381]
[1725294685507,3.83097839,132.37,132.35,0.04829748]
[1725294686803,3.83097839,132.37,132.35,3.82589748]
[1725294687509,3.83097839,132.37,132.35,0.04829748]
[1725294687904,1.4356,132.44,132.36,28.98]
[1725294688110,1.4356,132.44,132.38,28.98]
[1725294688312,1.4356,132.44,132.4,28.98]
[1725294688516,1.4356,132.44,132.4,32.7561]
[1725294688517,5.2109,132.44,132.4,32.7561]
[1725294688814,5.2109,132.44,132.4,28.98]
[1725294689012,0.05554211,132.43,132.41,0.05644802]
[1725294689811,0.05554211,132.43,132.42,28.98]
[1725294690012,1.3348,132.48,132.42,28.98]
[1725294690013,5.1089,132.48,132.42,28.98]
[1725294690318,5.1089,132.48,132.41,0.05644802]
[1725294690319,5.1089,132.48,132.45,28.98]
[1725294690611,3.7742,132.47,132.45,28.98]
[1725294691018,3.7742,132.47,132.45,29.03392668]
[1725294691218,3.82745402,132.47,132.45,29.03392668]
[1725294691824,0.05325402,132.47,132.45,29.03392668]
[1725294693827,0.05325402,132.47,132.45,0.05392668]
[1725294694221,3.7745,132.46,132.45,0.05392668]
[1725294695419,3.82755402,132.47,132.45,0.05392668]
[1725294696719,3.7745,132.46,132.45,0.05392668]
[1725294698619,3.82755402,132.47,132.45,0.05392668]
[1725294701013,0.05325402,132.47,132.45,0.05392668]
[1725294701519,3.82765402,132.47,132.45,0.05392668]
[1725294702420,3.82765402,132.47,132.45,3.82872668]
[1725294702627,3.82765402,132.47,132.45,0.05392668]
[1725294703420,3.7745,132.46,132.45,0.05392668]
[1725294704518,0.05325402,132.47,132.45,29.03392668]
[1725294704729,0.05325402,132.47,132.46,3.7745]
[1725294708528,0.05325402,132.47,132.46,32.7545]
[1725294709329,7.8924,132.53,132.5,3.7733]